fUSD/lending_fUSD_20260311
["ID","MTS","AMOUNT","RATE_DAILY","PERIOD"]
[408185632,1773192642203,-500.0,0.00019999,2]
[408185633,1773192642212,-500.0,0.00019999,2]
[408185634,1773192642221,-500.0,0.00019999,2]
[408185635,1773192642230,-500.0,0.00019999,2]
[408185636,1773192642239,-500.0,0.00019999,2]
[408185637,1773192642248,-500.0,0.00019999,2]
[408185638,1773192642258,-500.0,0.00019999,2]
[408185639,1773192642269,-500.0,0.00019999,2]
[408185640,1773192642278,-630.81055911,0.00019999,2]
[408185641,1773192642287,-500.0,0.00019999,2]
[408185642,1773192642295,-500.0,0.00019999,2]
[408185643,1773192642304,-500.0,0.00019999,2]
[408185644,1773192642313,-500.0,0.00019999,2]
[408185645,1773192642323,-500.0,0.00019999,2]
[408185646,1773192642333,-500.0,0.00019999,2]
[408185647,1773192642342,-500.0,0.00019999,2]
[408185648,1773192642351,-500.0,0.00019999,2]
[408185649,1773192642360,-507.21393636,0.00019999,2]
[408185650,1773192642370,-500.0,0.00019999,2]
[408185651,1773192642378,-500.0,0.00019999,2]
[408185652,1773192642387,-500.0,0.00019999,2]
[408185653,1773192642396,-500.0,0.00019999,2]
[408185654,1773192642404,-500.0,0.00019999,2]
[408185655,1773192642413,-500.0,0.00019999,2]
[408185656,1773192642423,-514.59328836,0.00019999,2]
[408185657,1773192642432,-500.0,0.00019999,2]
[408185658,1773192642441,-500.0,0.00019999,2]
[408185659,1773192642449,-500.0,0.00019999,2]
[408185660,1773192642458,-500.0,0.00019999,2]
[408185661,1773192642467,-500.0,0.00019999,2]
[408185662,1773192642477,-500.0,0.00019999,2]
[408185663,1773192642487,-500.0,0.00019999,2]
[408185664,1773192642499,-500.0,0.00019999,2]
[408185665,1773192642511,-524.54846384,0.00019999,2]
[408185666,1773192642522,-500.0,0.00019999,2]
[408185667,1773192642532,-500.0,0.00019999,2]
[408185668,1773192642542,-500.0,0.00019999,2]
[408185669,1773192642552,-500.0,0.00019999,2]
[408185670,1773192642562,-500.0,0.00019999,2]
[408185671,1773192642572,-500.0,0.00019999,2]
[408185672,1773192642582,-500.0,0.00019999,2]
[408185673,1773192642591,-500.0,0.00019999,2]
[408185674,1773192642600,-500.0,0.00019999,2]
[408185675,1773192642609,-500.0,0.00019999,2]
[408185676,1773192642618,-500.0,0.00019999,2]
[408185677,1773192642628,-500.0,0.00019999,2]
[408185678,1773192642637,-500.0,0.00019999,2]
[408185679,1773192642647,-500.0,0.00019999,2]
[408185680,1773192642655,-500.0,0.00019999,2]
[408185681,1773192642664,-500.0,0.00019999,2]
[408185682,1773192642673,-500.0,0.00019999,2]
[408185683,1773192642682,-500.0,0.00019999,2]
[408185684,1773192642692,-500.0,0.00019999,2]
[408185685,1773192642702,-500.0,0.00019999,2]
[408185686,1773192642712,-500.0,0.00019999,2]
[408185687,1773192642721,-500.0,0.00019999,2]
[408185688,1773192642731,-500.0,0.00019999,2]
[408185689,1773192642739,-246.2,0.00019999,2]
[408185690,1773192642750,-500.0,0.00019999,2]
[408185691,1773192642759,-500.0,0.00019999,2]
[408185692,1773192642768,-500.0,0.00019999,2]
[408185693,1773192642777,-500.0,0.00019999,2]
[408185694,1773192642786,-500.0,0.00019999,2]
[408185695,1773192642795,-500.0,0.00019999,2]
[408185696,1773192642804,-500.0,0.00019999,2]
[408185697,1773192642813,-500.0,0.00019999,2]
[408185698,1773192642822,-522.2,0.00019999,2]
[408185699,1773192642831,-500.0,0.00019999,2]
[408185700,1773192642840,-500.0,0.00019999,2]
[408185701,1773192642850,-500.0,0.00019999,2]
[408185703,1773192642858,-3000.0,0.00019999,2]
[408185704,1773192642867,-3000.0,0.00019999,2]
[408185705,1773192642876,-3000.0,0.00019999,2]
[408185706,1773192642885,-3000.0,0.00019999,2]
[408185707,1773192642894,-3000.0,0.00019999,2]
[408185708,1773192642903,-3000.0,0.00019999,2]
[408185709,1773192642911,-3000.0,0.00019999,2]
[408185710,1773192642920,-3000.0,0.00019999,2]
[408185711,1773192642929,-3000.0,0.00019999,2]
[408185712,1773192642938,-3000.0,0.00019999,2]
[408185713,1773192642947,-3000.0,0.00019999,2]
[408185714,1773192642956,-3000.0,0.00019999,2]
[408185715,1773192642964,-3000.0,0.00019999,2]
[408185716,1773192642973,-3000.0,0.00019999,2]
[408185717,1773192642982,-3000.0,0.00019999,2]
[408185718,1773192642991,-3000.0,0.00019999,2]
[408185719,1773192642999,-967.14869419,0.00019999,2]
[408185720,1773192643008,-496.5055918,0.00019999,2]
[408185721,1773192643018,-437.35281317,0.00019999,2]
[408185722,1773192643027,-500.0,0.00019999,2]
[408185723,1773192643037,-500.0,0.00019999,2]
[408185724,1773192643045,-500.0,0.00019999,2]
[408185725,1773192643054,-500.0,0.00019999,2]
[408185726,1773192643063,-356.54120924,0.00019999,2]
[408185728,1773192643072,-246.78370217,0.00019999,2]
[408185730,1773192643080,-1992.0,0.0002,2]
[408185732,1773192643089,-168689.1874325,0.0002,2]
[408185733,1773192643177,-38706.99225049,0.0002,2]
[408185734,1773192643225,-2320.67700773,0.0002,2]
[408185735,1773192643243,-416.95276053,0.000199,2]
[408185736,1773192643252,-397991.08224817,0.0002,2]
[408185741,1773192646043,-150.417645,0.00019726,2]
[408185742,1773192646053,-149.582355,0.000199,2]
[408185743,1773192646260,-620.70869764,0.000199,2]
[408185744,1773192646270,-5692.67671415,0.0002,2]
[408185745,1773192646281,-9102.88517705,0.0002,2]
[408185746,1773192646292,-10364.21135554,0.0002,2]
[408185747,1773192646303,-5691.53878164,0.0002,2]
[408185750,1773192740953,891.86330138,8.6e-05,2]
[408185751,1773192744986,799.78003695,8.6e-05,2]
[408185752,1773192747988,791.12940709,8.6e-05,2]
[408185753,1773192748044,862.49904235,8.6e-05,2]
[408185754,1773192791630,169.0,0.00012698,2]
[408185755,1773192846325,169.0,0.00012698,2]
[408185757,1773193147947,521.88247986,0.0001269,2]
[408185758,1773193202835,254.0,0.00012698,2]
[408185760,1773193612102,-158.0,0.00012698,2]
[408185761,1773193612122,-170.0,0.00012698,2]
[408185762,1773193612143,-106.81305268,0.00013327,2]
[408185763,1773193616268,-147.04218999,0.00013327,2]
[408185765,1773193670216,166.99,0.00011508,2]
[408185766,1773193805942,158.0,0.00013327,2]
[408185768,1773193832261,-300.0,0.00013711,2]
[408185769,1773193832271,-300.0,0.00013711,2]
[408185770,1773193832282,-303.31877716,0.00013711,2]
[408185771,1773193832291,-263.0,0.00013711,2]
[408185772,1773193832301,-194.25043192,0.00013866,2]
[408185773,1773193832311,-300.0,0.00013966,2]
[408185774,1773193832320,-1200.0,0.00013966,2]
[408185775,1773193832330,-150.0,0.00013967,2]
[408185776,1773193832339,-1200.0,0.00013967,2]
[408185777,1773193832348,-250.0,0.00013968,2]
[408185778,1773193832359,-300.0,0.00013968,2]
[408185779,1773193832369,-5052.45520807,0.00013968,2]
[408185780,1773193832379,-648.96564869,0.00013968,2]
[408185781,1773193832388,-166.66,0.00013989,2]
[408185783,1773193832398,-166.66,0.00014283,2]
[408185785,1773193832407,-63093.63,0.00014365,2]
[408185786,1773193832416,-505.41844865,0.00014373,2]
[408185787,1773193832425,-502.95942496,0.00014373,2]
[408185788,1773193832435,-237.45061676,0.00014373,2]
[408185789,1773193832444,-500.0,0.00014373,2]
[408185790,1773193832453,-656.08,0.00014436,2]
[408185791,1773193832462,-166.66,0.00014578,2]
[408185792,1773193832472,-221.67,0.00014858,3]
[408185793,1773193832481,-166.66,0.00014872,2]
[408185794,1773193832494,-157.74494083,0.00014913,2]
[408185795,1773193832504,-1008.03,0.00014985,2]
[408185796,1773193832516,-200.0,0.00014985,2]
[408185797,1773193832526,-500.0,0.00015,30]
[408185798,1773193832535,-500.0,0.00015,30]
[408185799,1773193832545,-500.0,0.00015,30]
[408185800,1773193832555,-500.0,0.00015,30]
[408185801,1773193832564,-500.0,0.00015,30]
[408185802,1773193832573,-500.0,0.00015,30]
[408185803,1773193832582,-5000.0,0.00015082,2]
[408185804,1773193832592,-600.0,0.00015082,2]
[408185805,1773193832601,-503.31767503,0.00015082,2]
[408185806,1773193832610,-255.0,0.00015084,2]
[408185807,1773193832620,-931.15,0.0001513,2]
[408185808,1773193832629,-166.66,0.00015167,2]
[408185809,1773193832639,-164.9948094,0.00015175,2]
[408185810,1773193832648,-194.25043192,0.0001521,2]
[408185811,1773193832657,-504.98137836,0.0001531,2]
[408185812,1773193832667,-516.75,0.0001531,2]
[408185813,1773193832676,-999.99,0.0001531,2]
[408185814,1773193832685,-3715.98,0.0001531,2]
[408185815,1773193832695,-430.4,0.0001531,2]
[408185816,1773193832705,-634.38,0.0001531,2]
[408185817,1773193832714,-1823.21,0.0001531,2]
[408185818,1773193832724,-9999.99,0.0001531,2]
[408185819,1773193832733,-62197.56,0.0001531,2]
[408185820,1773193832743,-3826.52539191,0.0001531,2]
[408185821,1773193832757,-6173.46460809,0.0001531,2]
[408185822,1773193832768,-150.99,0.0001531,2]
[408185823,1773193832777,-299.99,0.0001531,2]
[408185824,1773193832787,-1137.0,0.00015363,2]
[408185825,1773193832796,-166.66,0.00015461,2]
[408185826,1773193832805,-425.25,0.00015595,2]
[408185827,1773193832815,-1093.38373436,0.000157,2]
[408185828,1773193832824,-500.0,0.00015773,2]
[408185829,1773193832835,-500.68148128,0.00015773,2]
[408185830,1773193832844,-501.46920185,0.00015773,2]
[408185831,1773193832857,-503.27897932,0.00015773,2]
[408185832,1773193832867,-173.924,0.00015799,2]
[408185833,1773193832877,-3427.351,0.00015799,2]
[408185834,1773193832890,-342.83648688,0.00015799,2]
[408185835,1773193832903,-537.86692393,0.00015799,2]
[408185836,1773193832914,-462.51528708,0.00015799,2]
[408185837,1773193832923,-601.10612814,0.00015799,2]
[408185838,1773193832934,-500.0,0.00015799,2]
[408185839,1773193832945,-447.46299791,0.00015799,2]
[408185840,1773193832954,-500.0,0.00015799,2]
[408185841,1773193832964,-500.0,0.00015799,2]
[408185842,1773193832974,-500.0,0.00015799,2]
[408185843,1773193832983,-500.0,0.00015799,2]
[408185844,1773193832993,-500.0,0.00015799,2]
[408185845,1773193833003,-500.0,0.00015799,2]
[408185846,1773193833013,-500.0,0.00015799,2]
[408185847,1773193833024,-393.50343288,0.00015799,2]
[408185848,1773193833033,-500.0,0.00015799,2]
[408185849,1773193833043,-500.0,0.00015799,2]
[408185850,1773193833052,-500.0,0.00015799,2]
[408185851,1773193833061,-500.0,0.00015799,2]
[408185852,1773193833071,-500.0,0.00015799,2]
[408185853,1773193833081,-500.0,0.00015799,2]
[408185854,1773193833091,-500.0,0.00015799,2]
[408185855,1773193833101,-500.0,0.00015799,2]
[408185856,1773193833111,-500.0,0.00015799,2]
[408185857,1773193833120,-500.0,0.00015799,2]
[408185858,1773193833131,-500.0,0.00015799,2]
[408185859,1773193833140,-500.0,0.00015799,2]
[408185860,1773193833150,-500.0,0.00015799,2]
[408185861,1773193833159,-500.0,0.00015799,2]
[408185862,1773193833169,-500.0,0.00015799,2]
[408185863,1773193833179,-500.0,0.00015799,2]
[408185864,1773193833189,-500.0,0.00015799,2]
[408185865,1773193833199,-275.19671188,0.00015799,2]
[408185866,1773193833211,-224.80328812,0.00015799,2]
[408185867,1773193833221,-500.0,0.00015799,2]
[408185868,1773193833230,-500.0,0.00015799,2]
[408185869,1773193833240,-476.18939895,0.00015799,2]
[408185872,1773193838372,-23.81060105,0.00015799,2]
[408185873,1773193838381,-500.0,0.00015799,2]
[408185874,1773193838391,-500.0,0.00015799,2]
[408185875,1773193838399,-500.0,0.00015799,2]
[408185876,1773193838408,-500.0,0.00015799,2]
[408185877,1773193838419,-393.50343288,0.00015799,2]
[408185878,1773193838428,-500.0,0.00015799,2]
[408185879,1773193838437,-500.0,0.00015799,2]
[408185880,1773193838446,-500.0,0.00015799,2]
[408185881,1773193838458,-408.4947,0.000158,2]
[408185882,1773193838468,-931.15,0.00015887,2]
[408185883,1773193838477,-838.0,0.00015986,2]
[408185884,1773193838486,-14056.32,0.00016116,2]
[408185885,1773193838495,-2810.86,0.00016116,2]
[408185886,1773193838504,-241.0,0.00016285,2]
[408185888,1773193838514,-500.84787046,0.00016321,2]
[408185890,1773193838523,-1847.0,0.0001659,2]
[408185892,1773193838534,-872.0,0.00016623,2]
[408185894,1773193838544,-931.15,0.00016643,2]
[408185896,1773193838553,-500.0,0.00016764,2]
[408185898,1773193838562,-150.0,0.0001686,2]
[408185900,1773193838572,-150.0,0.0001686,2]
[408185902,1773193838582,-150.0,0.0001686,2]
[408185904,1773193838591,-150.0,0.0001686,2]
[408185906,1773193838600,-500.0,0.0001686,2]
[408185908,1773193838609,-150.0,0.0001686,2]
[408185910,1773193838618,-150.0,0.0001686,2]
[408185912,1773193838628,-150.0,0.0001686,2]
[408185914,1773193838637,-500.0,0.0001686,2]
[408185916,1773193838646,-150.0,0.0001686,2]
[408185918,1773193838656,-150.0,0.0001686,2]
[408185920,1773193838664,-500.0,0.0001686,2]
[408185922,1773193838674,-500.0,0.0001686,2]
[408185924,1773193838683,-150.0,0.0001686,2]
[408185926,1773193838692,-500.0,0.0001686,2]
[408185928,1773193838702,-500.0,0.0001686,2]
[408185930,1773193838711,-500.0,0.0001686,2]
[408185932,1773193838721,-500.0,0.0001686,2]
[408185934,1773193838730,-500.0,0.0001686,2]
[408185936,1773193838740,-500.0,0.0001686,2]
[408185937,1773193838750,-150.0,0.0001686,2]
[408185939,1773193838759,-150.0,0.0001686,2]
[408185940,1773193838769,-500.0,0.0001686,2]
[408185941,1773193838778,-150.0,0.0001686,2]
[408185942,1773193838787,-500.0,0.0001686,2]
[408185943,1773193838796,-500.0,0.0001686,2]
[408185944,1773193838806,-500.0,0.0001686,2]
[408185945,1773193838815,-500.0,0.0001686,2]
[408185946,1773193838824,-150.0,0.00016915,2]
[408185947,1773193838833,-150.0,0.00016915,2]
[408185948,1773193838846,-152.23722252,0.00016915,2]
[408185949,1773193838857,-150.20209622,0.00016915,2]
[408185950,1773193838868,-500.0,0.00016915,2]
[408185951,1773193838879,-150.0,0.00016915,2]
[408185952,1773193838888,-150.0,0.00016915,2]
[408185953,1773193838898,-503.26158094,0.00016915,2]
[408185954,1773193838907,-150.0,0.00016915,2]
[408185955,1773193838918,-503.86401705,0.00016915,2]
[408185956,1773193838927,-500.0,0.00016915,2]
[408185957,1773193838938,-648.99053488,0.00016915,2]
[408185958,1773193838947,-500.0,0.00016915,2]
[408185959,1773193838956,-500.0,0.00016915,2]
[408185960,1773193838965,-500.0,0.00016915,2]
[408185961,1773193838974,-500.0,0.00016915,2]
[408185962,1773193838983,-625.41390864,0.00016915,2]
[408185963,1773193838992,-150.0,0.00016915,2]
[408185964,1773193839001,-500.0,0.00016915,2]
[408185965,1773193839010,-150.0,0.00016915,2]
[408185966,1773193839019,-150.0,0.00016915,2]
[408185967,1773193839028,-600.74757442,0.00016915,2]
[408185968,1773193839037,-500.0,0.00016915,2]
[408185969,1773193839046,-500.0,0.00016915,2]
[408185970,1773193839055,-500.0,0.00016915,2]
[408185971,1773193839065,-150.0,0.0001697,2]
[408185972,1773193839074,-150.0,0.0001697,2]
[408185973,1773193839084,-302.91213692,0.0001697,2]
[408185974,1773193839093,-150.0,0.0001697,2]
[408185975,1773193839103,-150.0,0.0001697,2]
[408185976,1773193839113,-209.8782102,0.0001697,2]
[408185977,1773193839122,-500.0,0.0001697,2]
[408185978,1773193839132,-500.0,0.0001697,2]
[408185979,1773193839142,-500.0,0.0001697,2]
[408185980,1773193839151,-500.0,0.0001697,2]
[408185981,1773193839160,-500.0,0.0001697,2]
[408185982,1773193839170,-150.0,0.0001697,2]
[408185983,1773193839179,-500.0,0.0001697,2]
[408185984,1773193839188,-150.0,0.0001697,2]
[408185985,1773193839198,-207.78302129,0.0001697,2]
[408185986,1773193839207,-500.0,0.0001697,2]
[408185987,1773193839216,-500.0,0.0001697,2]
[408185988,1773193839228,-500.0,0.0001697,2]
[408185989,1773193839238,-169.48,0.00016973,2]
[408185990,1773193839247,-502.0,0.00017,2]
[408185991,1773193839256,-499.0,0.00017007,2]
[408185992,1773193839265,-150.0,0.00017024,2]
[408185993,1773193839276,-275.17021168,0.00017024,2]
[408185994,1773193839285,-205.57005763,0.00017024,2]
[408185995,1773193839294,-250.58262965,0.00017024,2]
[408185996,1773193839304,-500.0,0.00017024,2]
[408185997,1773193839313,-500.0,0.00017024,2]
[408185998,1773193839326,-500.0,0.00017024,2]
[408185999,1773193839335,-500.0,0.00017024,2]
[408186000,1773193839345,-500.0,0.00017024,2]
[408186001,1773193839354,-200.54971952,0.00017024,2]
[408186002,1773193839363,-150.0,0.00017024,2]
[408186003,1773193839372,-500.0,0.00017024,2]
[408186004,1773193839381,-500.0,0.00017024,2]
[408186005,1773193839390,-392.13396594,0.00017024,2]
[408186006,1773193839399,-335.51311289,0.00017024,2]
[408186007,1773193839409,-313.0,0.00017041,2]
[408186008,1773193839418,-247.64517432,0.00017075,2]
[408186009,1773193839427,-162.97136106,0.00017079,2]
[408186010,1773193839437,-500.0,0.00017079,2]
[408186011,1773193839447,-500.0,0.00017079,2]
[408186012,1773193839456,-500.0,0.00017079,2]
[408186013,1773193839465,-500.0,0.00017079,2]
[408186014,1773193839474,-500.0,0.00017079,2]
[408186015,1773193839484,-151.04601421,0.00017079,2]
[408186016,1773193839493,-450.62449707,0.00017079,2]
[408186017,1773193839502,-500.0,0.00017079,2]
[408186018,1773193839511,-152.0,0.00017133,2]
[408186019,1773193839521,-510.77564098,0.00017134,2]
[408186020,1773193839530,-500.0,0.00017134,2]
[408186021,1773193839539,-401.99957865,0.00017134,2]
[408186022,1773193839548,-261.47135682,0.00017134,2]
[408186023,1773193839557,-500.0,0.00017134,2]
[408186024,1773193839567,-500.0,0.00017134,2]
[408186025,1773193839576,-602.0,0.00017167,2]
[408186026,1773193839585,-155.04313062,0.00017189,2]
[408186027,1773193839595,-500.0,0.00017189,2]
[408186028,1773193839604,-508.40747753,0.00017189,2]
[408186029,1773193839613,-500.0,0.00017244,2]
[408186030,1773193839623,-1887.00014921,0.0001725,2]
[408186031,1773193839632,-500.0,0.00017298,2]
[408186032,1773193839642,-500.0,0.00017353,2]
[408186033,1773193839651,-931.15,0.000174,2]
[408186034,1773193839661,-500.0,0.00017408,2]
[408186035,1773193839671,-500.0,0.00017463,2]
[408186036,1773193839680,-500.0,0.00017518,2]
[408186037,1773193839689,-398.88764252,0.00017572,2]
[408186038,1773193839699,-500.0,0.00017727,2]
[408186039,1773193839708,-500.0,0.00017727,2]
[408186040,1773193839718,-500.0,0.00017727,2]
[408186041,1773193839727,-500.0,0.00017727,2]
[408186042,1773193839736,-500.0,0.00017727,2]
[408186043,1773193839745,-500.0,0.00017727,2]
[408186044,1773193839754,-500.0,0.00017727,2]
[408186045,1773193839764,-500.0,0.00017727,2]
[408186046,1773193839775,-500.0,0.00017727,2]
[408186047,1773193839788,-500.0,0.00017808,2]
[408186048,1773193839798,-800.9737091,0.00017808,2]
[408186049,1773193839807,-500.0,0.00017863,2]
[408186050,1773193839817,-267.16142835,0.000179,2]
[408186051,1773193839837,-267.16142835,0.000179,2]
[408186052,1773193839847,-204.90199074,0.00017918,2]
[408186053,1773193839861,-500.0,0.00018036,2]
[408186054,1773193839871,-250.0,0.00018117,2]
[408186055,1773193839880,-931.15,0.00018156,2]
[408186056,1773193839890,-485.24,0.00018199,2]
[408186057,1773193839909,-16660.13,0.00018204,2]
[408186058,1773193839919,-2475.45,0.00018319,2]
[408186059,1773193839928,-500.0,0.00018399,2]
[408186060,1773193839938,-500.0,0.00018399,2]
[408186061,1773193839947,-2805.0,0.000184,2]
[408186062,1773193839957,-485.24,0.00018473,2]
[408186064,1773193839967,-1064.26,0.000186,2]
[408186065,1773193839976,-3009.71,0.000187,2]
[408186066,1773193839986,-162.0,0.0001872,2]
[408186067,1773193839994,-847.0,0.0001872,2]
[408186068,1773193840003,-2807.0,0.0001872,2]
[408186069,1773193840012,-485.24,0.00018747,2]
[408186070,1773193840022,-4767.38,0.00018747,2]
[408186071,1773193840032,-494.85,0.00018819,2]
[408186072,1773193840050,-494.85,0.00018819,2]
[408186073,1773193840061,-2000.0,0.00018864,2]
[408186074,1773193840070,-3069.3118653,0.000189,2]
[408186075,1773193840079,-500.0,0.00018996,2]
[408186076,1773193840088,-527.85855313,0.00018996,2]
[408186077,1773193840097,-500.0,0.00018996,2]
[408186078,1773193840107,-500.0,0.00018996,2]
[408186079,1773193840116,-500.0,0.00018996,2]
[408186080,1773193840125,-500.0,0.00018996,2]
[408186081,1773193840134,-500.0,0.00018996,2]
[408186082,1773193840144,-500.0,0.00018996,2]
[408186083,1773193840153,-500.0,0.00018996,2]
[408186084,1773193840162,-500.0,0.00018999,2]
[408186085,1773193840171,-485.24,0.00019021,2]
[408186086,1773193840180,-1006.0,0.0001904,2]
[408186087,1773193840189,-2807.0,0.0001904,2]
[408186088,1773193840198,-500.0,0.00019054,2]
[408186089,1773193840207,-169.48,0.00019095,2]
[408186090,1773193840216,-500.0,0.00019109,2]
[408186091,1773193840225,-500.0,0.00019164,2]
[408186092,1773193840234,-150.14636363,0.00019178,2]
[408186093,1773193840244,-350.0,0.00019204,2]
[408186094,1773193840254,-500.0,0.00019219,2]
[408186095,1773193840263,-500.0,0.00019274,2]
[408186096,1773193840272,-1000.0,0.00019274,2]
[408186097,1773193840281,-405.76,0.00019295,2]
[408186098,1773193840298,-350.0,0.000193,2]
[408186099,1773193840307,-350.0,0.00019325,2]
[408186100,1773193840317,-500.0,0.00019329,2]
[408186101,1773193840326,-161.0,0.0001936,2]
[408186102,1773193840335,-2807.0,0.0001936,2]
[408186103,1773193840344,-161.0,0.0001936,2]
[408186104,1773193840353,-500.0,0.00019384,2]
[408186105,1773193840362,-500.0,0.00019439,2]
[408186106,1773193840371,-500.0,0.00019494,2]
[408186107,1773193840380,-1000.0,0.00019548,2]
[408186108,1773193840389,-500.0,0.00019549,2]
[408186109,1773193840398,-339.0,0.0001955,2]
[408186110,1773193840407,-494.86051683,0.0001958,2]
[408186111,1773193840417,-292.37,0.000196,30]
[408186112,1773193840426,-1051.344124,0.000196,2]
[408186113,1773193840436,-500.0,0.00019604,2]
[408186114,1773193840446,-2339.44391858,0.00019646,2]
[408186115,1773193840455,-2339.44391858,0.00019683,2]
[408186116,1773193840464,-1979.66047424,0.000197,2]
[408186117,1773193840474,-2339.44391858,0.00019719,2]
[408186118,1773193840483,-500.0,0.00019725,5]
[408186119,1773193840492,-196.74,0.00019725,2]
[408186120,1773193840501,-500.0,0.00019726,2]
[408186121,1773193840510,-439.94423244,0.00019726,2]
[408186122,1773193840519,-1767.47,0.00019726,2]
[408186123,1773193840728,-1767.47,0.00019726,2]
[408186124,1773193840743,-1767.47,0.00019726,2]
[408186125,1773193840753,-1767.47,0.00019726,2]
[408186126,1773193840762,-1767.47,0.00019726,2]
[408186127,1773193840771,-1767.47,0.00019726,2]
[408186128,1773193840781,-1767.47,0.00019726,2]
[408186129,1773193840790,-1767.47,0.00019726,2]
[408186130,1773193840799,-1767.47,0.00019726,2]
[408186131,1773193840809,-1767.47,0.00019726,2]
[408186132,1773193840818,-1767.47,0.00019726,2]
[408186133,1773193840827,-1767.47,0.00019726,2]
[408186134,1773193840836,-1767.47,0.00019726,2]
[408186135,1773193840846,-1767.47,0.00019726,2]
[408186136,1773193840855,-1767.47,0.00019726,2]
[408186137,1773193840865,-1767.47,0.00019726,2]
[408186138,1773193840876,-1767.47,0.00019726,2]
[408186139,1773193840886,-1767.47,0.00019726,2]
[408186140,1773193840895,-1767.47,0.00019726,2]
[408186141,1773193840904,-1767.47,0.00019726,2]
[408186142,1773193840914,-1767.47,0.00019726,2]
[408186143,1773193840924,-1767.47,0.00019726,2]
[408186144,1773193840933,-1767.47,0.00019726,2]
[408186145,1773193840945,-1767.6607929,0.00019726,2]
[408186146,1773193840955,-500.0,0.00019726,2]
[408186147,1773193840965,-500.62592271,0.00019726,2]
[408186148,1773193840974,-1198.58,0.00019726,2]
[408186149,1773193840984,-1198.58,0.00019726,2]
[408186150,1773193840993,-1198.58,0.00019726,2]
[408186151,1773193841003,-1198.58,0.00019726,2]
[408186153,1773193841013,-1198.58,0.00019726,2]
[408186155,1773193841023,-1198.58,0.00019726,2]
[408186156,1773193841036,-1198.58,0.00019726,2]
[408186157,1773193841046,-1198.58,0.00019726,2]
[408186158,1773193841056,-1198.58,0.00019726,2]
[408186160,1773193841065,-1198.58,0.00019726,2]
[408186162,1773193841075,-1198.58,0.00019726,2]
[408186163,1773193841085,-1198.58,0.00019726,2]
[408186164,1773193841094,-1198.58,0.00019726,2]
[408186165,1773193841104,-1198.58,0.00019726,2]
[408186166,1773193841114,-1198.58,0.00019726,2]
[408186167,1773193841123,-1198.58,0.00019726,2]
[408186168,1773193841133,-1198.58,0.00019726,2]
[408186169,1773193841143,-1198.58,0.00019726,2]
[408186170,1773193841152,-1198.58,0.00019726,2]
[408186171,1773193841162,-1198.58,0.00019726,2]
[408186172,1773193841172,-1198.58,0.00019726,2]
[408186173,1773193841181,-1198.58,0.00019726,2]
[408186174,1773193841191,-1198.58,0.00019726,2]
[408186175,1773193841201,-1198.69073917,0.00019726,2]
[408186176,1773193841210,-244.86104484,0.00019726,2]
[408186177,1773193841219,-500.0,0.00019726,2]
[408186178,1773193841229,-300.0,0.00019726,2]
[408186179,1773193841238,-300.0,0.00019726,2]
[408186180,1773193841248,-300.0,0.00019726,2]